bitfinex-derivatives/quotes_ETHF0:USTF0_20250417
["timestamp","ask_amount","ask_price","bid_price","bid_amount"]
[1744870191325,2.75241381,1605.5,1605.4,6.09499]
[1744870191830,0.00936154,1605.5,1605.4,6.56852354]
[1744870192721,0.00936154,1605.5,1605.4,6.56843259]
[1744870192929,0.00936154,1605.5,1605.4,6.56844475]
[1744870194634,0.00936154,1605.5,1605.4,6.56844339]
[1744870195540,0.00936154,1605.5,1605.4,7.36564333]
[1744870195740,0.00936154,1605.5,1605.4,6.56844339]
[1744870196522,0.00936154,1605.5,1605.4,6.56835371]
[1744870197136,5.96021381,1605.5,1605.4,6.56835371]
[1744870198038,7.20602381,1605.5,1605.4,6.56835371]
[1744870198239,7.20602381,1605.5,1605.4,6.56864773]
[1744870198537,5.96021381,1605.5,1605.4,6.56864773]
[1744870198728,5.96021381,1605.5,1605.4,6.09499]
[1744870198930,7.62521381,1605.5,1605.4,6.09499]
[1744870199527,5.96021381,1605.5,1605.4,6.09499]
[1744870199731,2.75241381,1605.5,1605.4,6.56874518]
[1744870200438,3.99822381,1605.5,1605.4,6.56874518]
[1744870200638,2.75241381,1605.5,1605.4,6.09499]
[1744870200840,2.75241381,1605.5,1605.4,6.56873657]
[1744870201339,2.75241381,1605.5,1605.4,6.56874221]
[1744870203044,2.75241381,1605.5,1605.4,6.09499]
[1744870203234,2.75241381,1605.5,1605.4,6.56874243]
[1744870205343,2.75241381,1605.5,1605.4,6.56907988]
[1744870206636,0.00936154,1605.5,1605.4,12.83109613]
[1744870207144,0.00936154,1605.5,1605.4,12.42507988]
[1744870207550,0.00936154,1605.5,1605.4,13.22422682]
[1744870208149,0.00936154,1605.5,1605.4,12.42507988]
[1744870208350,0.00936154,1605.5,1605.4,13.22463647]
[1744870208554,0.00936154,1605.5,1605.4,13.22524192]
[1744870210358,0.00936154,1605.5,1605.4,13.22591189]
[1744870210653,1.54e-06,1605.5,1605.4,13.22591189]
[1744870212160,1.54e-06,1605.5,1605.4,13.22585222]
[1744870212760,2.74305381,1605.5,1605.4,13.22585222]
[1744870213255,5.95085381,1605.5,1605.4,11.97996222]
[1744870213460,7.19666381,1605.5,1605.4,4.92861427]
[1744870213655,3.98886381,1605.5,1605.4,4.92861427]
[1744870213851,8.84166381,1605.5,1605.4,4.92861427]
[1744870214054,8.84166381,1605.5,1605.4,4.92897174]
[1744870214363,8.84166381,1605.5,1605.4,3.68308174]
[1744870214854,13.84166381,1605.5,1605.4,3.2078]
[1744870215562,12.59585381,1605.5,1605.1,9.0638]
[1744870215769,4.45385,1605.2,1605.1,3.2078]
[1744870215954,8.91685,1605.2,1605.1,3.68339291]
[1744870216258,11.65990227,1605.2,1605.1,3.68339291]
[1744870216655,13.29330227,1605.2,1605.1,3.68339291]
[1744870216850,12.04725227,1605.2,1605.1,4.92951291]
[1744870217762,7.58425227,1605.2,1605.1,4.92951291]
[1744870217959,5.95085227,1605.2,1605.1,4.92951291]
[1744870218262,5.95085227,1605.2,1605.1,5.72994983]
[1744870218454,5.95085227,1605.2,1605.1,5.72990077]
[1744870218759,5.95085227,1605.2,1605.1,4.92951291]
[1744870219064,7.55515227,1605.2,1605.1,4.92951291]
[1744870219464,7.55515227,1605.2,1605.1,4.92918249]
[1744870223165,7.55515227,1605.2,1605.1,4.9289487]
[1744870224562,2.74305227,1605.2,1605.1,4.9289487]
[1744870224767,2.74305227,1605.2,1605.1,10.7849487]
[1744870224966,2.74305227,1605.2,1605.1,10.78489227]
[1744870226769,2.74305227,1605.2,1605.1,10.78483292]
[1744870228471,2.74305227,1605.2,1605.1,11.58391973]
[1744870228664,2.74305227,1605.2,1605.1,11.58332497]
[1744870229069,2.74305227,1605.2,1605.1,10.784339]
[1744870229371,5.95085227,1605.2,1605.1,10.784339]
[1744870229570,7.60495227,1605.2,1605.1,10.784339]
[1744870230366,7.60495227,1605.2,1605.1,10.78418089]
[1744870230566,8.85100227,1605.2,1605.1,10.78418089]
[1744870230874,8.85100227,1605.2,1605.1,3.68206089]
[1744870231169,8.85100227,1605.2,1605.1,3.2078]
[1744870231873,1.2462,1605.0,1604.9,9.0638]
[1744870232073,8.808,1605.0,1604.9,3.2078]
[1744870232276,11.55105227,1605.0,1604.9,3.2078]
[1744870232472,13.18175227,1605.0,1604.9,3.68224776]
[1744870233376,13.18175227,1605.0,1604.9,3.2078]
[1744870234975,18.18175227,1605.0,1604.9,3.2078]
[1744870235177,16.93555227,1605.0,1604.7,3.2078]
[1744870235475,1.24636,1604.8,1604.7,3.2078]
[1744870235776,4.45416,1604.8,1604.7,3.68191918]
[1744870235977,4.45416,1604.8,1604.7,3.2078]
[1744870235978,8.84391227,1604.8,1604.7,3.2078]
[1744870237073,1.24643,1604.7,1604.6,0.00936154]
[1744870237273,14.95448227,1604.7,1604.6,0.00936154]
[1744870237579,19.95448227,1604.7,1604.6,0.00936154]
[1744870238578,17.21143,1604.7,1604.6,0.00936154]
[1744870238879,19.95448227,1604.7,1604.6,0.00936154]
[1744870239880,1.24667,1604.4,1604.3,3.2078]
[1744870240077,1.24682,1604.2,1604.1,5.43778]
[1744870240284,4.45462,1604.2,1604.1,5.43778]
[1744870240478,7.19767227,1604.2,1604.1,5.43778]
[1744870240781,8.81267227,1604.2,1604.1,5.43778]
[1744870242677,7.56585227,1604.2,1604.1,6.68468]
[1744870242878,7.56585227,1604.2,1604.1,8.31318]
[1744870243077,8.81267227,1604.2,1604.1,7.06628]
[1744870243769,7.56585227,1604.2,1604.1,8.31318]
[1744870243973,8.81267227,1604.2,1604.1,7.06628]
[1744870245576,7.56585227,1604.2,1604.1,8.31318]
[1744870245775,8.81267227,1604.2,1604.1,8.31318]
[1744870245975,8.81267227,1604.2,1604.1,7.06628]
[1744870246680,2.74305227,1604.2,1604.1,8.31318]
[1744870246887,0.00936154,1604.3,1604.2,1.24682]
[1744870247182,0.00936154,1604.3,1604.2,6.19062]
[1744870247678,2.75241381,1604.3,1604.2,6.19062]
[1744870248485,0.00936154,1604.3,1604.2,6.19062]
[1744870250788,2.75241381,1604.3,1604.2,6.19062]
[1744870251484,1.54e-06,1604.3,1604.2,17.04662]
[1744870251695,2.92403,1604.9,1604.3,3.11687]
[1744870251882,1.6777,1604.8,1604.7,1.2464]
[1744870252181,3.2078,1604.7,1604.6,2.87796]
[1744870252388,5.95085227,1604.7,1604.6,2.87801]
[1744870252587,2.74305227,1604.7,1604.6,2.87801]
[1744870259478,7.19728227,1604.7,1604.6,1.6315]
[1744870260087,7.19728227,1604.7,1604.6,2.87801]
[1744870260691,5.95085227,1604.7,1604.6,2.87801]
[1744870261293,5.95085227,1604.7,1604.6,3.35133847]
[1744870261485,5.95085227,1604.7,1604.6,2.87801]
[1744870261891,5.95085227,1604.7,1604.6,3.3516054]
[1744870262190,11.52028227,1604.7,1604.5,6.14593]
[1744870262386,7.17533,1604.7,1604.6,1.6736]
[1744870262784,5.9289,1604.7,1604.6,2.92011]
[1744870262991,11.87975227,1604.7,1604.6,2.92011]
[1744870263493,13.12618227,1604.7,1604.6,1.6736]
[1744870263796,13.12618227,1604.7,1604.6,2.92011]
[1744870263997,13.12618227,1604.7,1604.6,1.6736]
[1744870264292,13.12618227,1604.7,1604.6,2.92011]
[1744870264496,11.87975227,1604.7,1604.6,2.92011]
[1744870264692,5.95085227,1604.7,1604.6,2.92011]
[1744870264888,0.00936154,1604.8,1604.7,1.24643]
[1744870265095,2.75241381,1604.8,1604.7,6.60558513]
[1744870266689,7.20657381,1604.8,1604.7,5.35915513]
[1744870266889,1.24643,1604.7,1604.6,1.2465]
[1744870267092,8.83088227,1604.7,1604.6,1.2465]
[1744870268002,7.58445227,1604.7,1604.6,1.2465]
[1744870268299,11.90745227,1604.7,1604.5,7.77703]
[1744870268491,8.83096227,1604.6,1604.5,1.6311]
[1744870269403,8.83096227,1604.6,1604.5,2.87769]
[1744870269606,7.58445227,1604.6,1604.5,6.08549]
[1744870269899,7.58445227,1604.6,1604.5,4.8389]
[1744870270105,7.58445227,1604.6,1604.5,6.08549]
[1744870270405,7.58445227,1604.6,1604.5,6.55978818]
[1744870271216,8.83096227,1604.6,1604.5,5.31319818]
[1744870271417,8.83096227,1604.6,1604.5,3.2078]
[1744870271625,8.83096227,1604.6,1604.4,7.10262]
[1744870271917,8.94484227,1604.5,1604.4,5.856]
[1744870272117,6.20179,1604.5,1604.4,6.33066212]
[1744870272318,8.94484227,1604.5,1604.4,6.33066212]
[1744870272918,5.73704227,1604.5,1604.4,6.33066212]
[1744870273109,8.94484227,1604.5,1604.4,6.33066212]
[1744870273310,8.94484227,1604.5,1604.4,5.856]
[1744870273516,7.69825227,1604.5,1604.3,3.2078]
[1744870273718,13.27452227,1604.4,1604.3,3.2078]
[1744870274317,1.24679,1604.3,1604.1,14.17442]
[1744870274615,4.9618,1604.2,1604.1,12.54062]
[1744870274812,8.95167227,1604.2,1604.1,13.01601863]
[1744870275118,8.95167227,1604.2,1604.1,11.76917863]
[1744870275318,8.95167227,1604.2,1604.1,11.76939203]
[1744870275507,8.95167227,1604.2,1604.1,13.01617702]
[1744870275713,7.70485227,1604.2,1604.1,13.01617702]
[1744870276517,7.70485227,1604.2,1604.1,16.22397702]
[1744870276518,2.74305227,1604.2,1604.1,16.22397702]
[1744870277619,5.95085227,1604.2,1604.1,10.36797702]
[1744870278019,7.62925227,1604.2,1604.1,10.36797702]
[1744870279025,7.62925227,1604.2,1604.1,10.36800532]
[1744870279220,8.87607227,1604.2,1604.1,5.43778]
[1744870279419,10.55667227,1604.2,1604.1,5.43778]
[1744870282827,15.55667227,1604.2,1604.1,5.43778]
[1744870283325,15.55667227,1604.2,1604.1,1.55894154]
[1744870286222,15.55667227,1604.2,1604.1,0.13444154]
[1744870286624,1.24729,1603.6,1603.5,5.856]
[1744870286918,7.53179692,1603.6,1603.2,8.3649]
[1744870287131,4.45529692,1603.4,1603.2,9.61249]
[1744870287432,1.24752,1603.3,1603.2,3.7565]
[1744870287622,4.41465227,1603.3,1603.2,3.7565]
[1744870287818,5.66217227,1603.3,1603.2,2.5089]
[1744870288022,8.86996919,1603.3,1603.2,2.5089]
[1744870288721,8.86996919,1603.3,1603.2,3.7565]
[1744870288927,7.62244919,1603.3,1603.2,3.7565]
[1744870289324,2.74305227,1603.3,1603.2,3.7565]
[1744870289931,2.74305227,1603.3,1603.2,4.23013959]
[1744870290129,2.74305227,1603.3,1603.2,3.7565]
[1744870290729,0.00936154,1603.4,1603.2,3.7565]
[1744870290730,0.00936154,1603.4,1603.3,1.24752]
[1744870291032,0.00936154,1603.4,1603.3,6.09152]
[1744870291233,0.00936154,1603.4,1603.3,11.56494767]
[1744870291430,0.00936154,1603.4,1603.3,6.56488909]
[1744870292135,0.00936154,1603.4,1603.3,6.09152]
[1744870292437,0.00936154,1603.4,1603.3,11.94752]
[1744870295636,2.75241381,1603.4,1603.3,11.94752]
[1744870295834,3.99985381,1603.4,1603.3,10.7]
[1744870296137,5.61605381,1603.4,1603.3,10.7]
[1744870296335,8.82385073,1603.4,1603.3,7.4922]
[1744870296737,9.63135073,1603.4,1603.3,5.856]
[1744870297337,10.46245073,1603.4,1603.3,5.856]
[1744870298238,10.46245073,1603.4,1603.2,3.7082]
[1744870298440,7.62714919,1603.3,1603.2,3.7082]
[1744870298631,8.87466919,1603.3,1603.2,3.7082]
[1744870298832,7.62714919,1603.3,1603.2,3.7082]
[1744870300135,8.87466919,1603.3,1603.2,3.7082]
[1744870300328,8.87466919,1603.3,1603.2,1.6273]
[1744870300534,1.2476,1603.2,1603.1,3.21716154]
[1744870300727,9.94495227,1603.2,1603.1,0.00936154]
[1744870300935,13.15274919,1603.2,1603.1,0.00936154]
[1744870301437,13.15274919,1603.2,1603.1,1.70746154]
[1744870301839,10.26184919,1603.2,1603.1,3.82924154]
[1744870302131,11.50944919,1603.2,1603.1,3.82924154]
[1744870302337,10.26184919,1603.2,1603.1,3.82924154]
[1744870302539,10.26184919,1603.2,1603.1,7.03704154]
[1744870303736,11.50944919,1603.2,1603.1,7.03704154]
[1744870304236,11.50944919,1603.2,1603.1,5.78936154]
[1744870306934,11.50944919,1603.2,1603.1,0.00936154]
[1744870311443,11.51044919,1603.2,1603.1,0.00936154]
[1744870311845,11.51044919,1603.2,1603.1,1.69026154]
[1744870312947,14.71824919,1603.2,1603.1,0.00936154]
[1744870313247,11.51044919,1603.2,1603.1,0.00936154]
[1744870314048,14.71824919,1603.2,1603.1,0.00936154]
[1744870314350,11.51044919,1603.2,1603.1,0.00936154]
[1744870314745,14.71824919,1603.2,1603.1,0.00936154]
[1744870314947,11.51044919,1603.2,1603.1,0.00936154]
[1744870315447,14.71824919,1603.2,1603.1,0.00936154]
[1744870318441,11.51044919,1603.2,1603.1,0.00936154]
[1744870321448,13.16364919,1603.2,1603.1,0.48588411]
[1744870321645,13.16364919,1603.2,1603.1,0.00936154]
[1744870321848,13.16364919,1603.2,1603.1,1.68926154]
[1744870323543,13.16364919,1603.2,1603.1,2.16608793]
[1744870323849,13.16364919,1603.2,1603.1,1.68926154]
[1744870324046,13.16364919,1603.2,1603.1,2.16611408]
[1744870325454,13.16364919,1603.2,1603.1,1.68926154]
[1744870326145,13.16364919,1603.2,1603.1,2.16626556]
[1744870327551,13.16364919,1603.2,1603.1,2.16638542]
[1744870329946,13.16364919,1603.2,1603.1,2.16664021]
[1744870333157,13.16364919,1603.2,1603.1,2.16665827]
[1744870333652,9.95585227,1603.2,1603.1,2.16665827]
[1744870333852,13.16364919,1603.2,1603.1,2.16665827]
[1744870334957,13.16364919,1603.2,1603.1,2.16668384]
[1744870335551,13.16364919,1603.2,1603.1,0.48678384]
[1744870335952,13.16364919,1603.2,1603.1,0.00936154]
[1744870339252,8.85164919,1603.2,1603.1,0.48676154]
[1744870339558,13.09564919,1603.2,1603.1,0.48676154]
[1744870339955,13.09564919,1603.2,1603.1,0.00936154]
[1744870340255,13.09564919,1603.2,1603.1,0.48673298]
[1744870340460,11.44244919,1603.2,1603.1,2.14322566]
[1744870342164,11.44244919,1603.2,1603.1,0.48672566]
[1744870342659,11.44244919,1603.2,1603.1,0.00936154]
[1744870343363,13.05864919,1603.2,1603.1,0.00936154]
[1744870347159,13.05864919,1603.2,1603.1,1.54e-06]
[1744870347160,18.05864919,1603.2,1603.1,1.54e-06]
[1744870347358,18.05864919,1603.2,1602.7,2.4704]
[1744870347359,1.24791,1602.8,1602.7,2.4704]
[1744870347558,8.69970692,1602.8,1602.7,2.94777216]
[1744870347753,11.44275919,1602.8,1602.7,0.47737216]
[1744870347964,1.24799,1602.7,1602.6,8.19313624]
[1744870348160,9.77313919,1602.7,1602.6,8.19313624]
[1744870349665,1.24807,1602.6,1602.5,0.00936154]
[1744870349865,8.86971919,1602.6,1602.5,0.00936154]
[1744870350259,12.07751919,1602.6,1602.5,0.00936154]
[1744870350867,17.07751919,1602.6,1602.5,1.54e-06]
[1744870351566,23.06751919,1602.6,1602.5,1.54e-06]
[1744870351865,21.81944919,1602.6,1602.3,8.19313624]
[1744870352072,7.66381692,1602.4,1602.3,8.19313624]
[1744870352561,12.97906919,1602.4,1602.3,8.19313624]
[1744870353363,1.2483,1602.3,1602.2,0.00936154]
[1744870353663,8.92184919,1602.3,1602.2,0.00936154]
[1744870355081,2.74305227,1602.3,1602.2,5.00936154]
[1744870355367,4.22936154,1602.5,1602.2,5.00936154]
[1744870355569,2.74305227,1602.4,1602.3,2.09916]
[1744870356567,2.74305227,1602.4,1602.3,7.09916]
[1744870359473,2.74305227,1602.4,1602.3,2.09916]
[1744870362374,2.74305227,1602.4,1602.3,3.78136]
[1744870362868,0.00936154,1602.5,1602.4,1.24822]
[1744870363174,0.00936154,1602.5,1602.4,3.74782]
[1744870363370,0.00936154,1602.5,1602.4,8.74782]
[1744870363573,0.00936154,1602.5,1602.4,9.22271087]
[1744870364078,0.00936154,1602.5,1602.4,9.22265405]
[1744870365284,0.00936154,1602.5,1602.4,8.74782]
[1744870367177,0.00936154,1602.5,1602.4,3.74782]
[1744870367984,0.00936154,1602.5,1602.4,4.22303771]
[1744870369294,0.00936154,1602.5,1602.4,3.74782]
[1744870369789,4.00055381,1602.5,1602.4,2.4996]
[1744870369993,7.20835073,1602.5,1602.4,3.74782]
[1744870370284,5.96021073,1602.5,1602.4,3.74782]
[1744870370590,2.75241381,1602.5,1602.4,4.22328907]
[1744870371281,2.75241381,1602.5,1602.4,7.43108907]
[1744870374891,2.75241381,1602.5,1602.4,7.43154106]
[1744870376691,2.75241381,1602.5,1602.4,7.43179745]
[1744870378099,0.00936154,1602.5,1602.4,8.23380952]
[1744870379398,0.00936154,1602.5,1602.4,7.43179745]
[1744870380199,0.00936154,1602.5,1602.4,13.23378479]
[1744870380395,0.00936154,1602.5,1602.4,7.43179745]
[1744870381194,0.00936154,1602.5,1602.4,13.28779745]
[1744870381392,0.8587,1603.0,1602.9,1.24783]
[1744870381595,3.20779692,1603.0,1602.9,1.72400745]
[1744870381796,7.19860919,1603.0,1602.9,1.72400745]
[1744870381996,8.81090919,1603.0,1602.9,1.6881]
[1744870382196,8.81090919,1603.0,1602.8,4.45565]
[1744870382501,8.81097919,1602.9,1602.8,3.2078]
[1744870382699,4.82009692,1602.9,1602.8,4.93179135]
[1744870383000,2.74305227,1602.9,1602.8,6.54519135]
[1744870383394,7.16997154,1603.1,1603.0,1.24776]
[1744870383802,13.12082073,1603.1,1602.9,2.86118]
[1744870384002,7.64474919,1603.0,1602.9,2.86118]
[1744870384201,7.64474919,1603.0,1602.9,3.33741408]
[1744870384401,4.43695227,1603.0,1602.9,2.86118]
[1744870384699,4.43695227,1603.0,1602.9,3.3373103]
[1744870385102,4.43695227,1603.0,1602.9,2.86118]
[1744870385303,4.43695227,1603.0,1602.9,3.33758496]
[1744870385806,5.68471227,1603.0,1602.9,0.47640496]
[1744870386196,1.24783,1602.9,1602.7,9.52985]
[1744870386502,1.6743,1602.8,1602.7,9.52985]
[1744870386698,0.7997,1602.8,1602.7,10.00620765]
[1744870386902,0.7997,1602.8,1602.7,10.79630765]
[1744870387602,3.54275227,1602.8,1602.7,10.79630765]
[1744870388802,3.54275227,1602.8,1602.7,10.7964098]
[1744870389995,5.26035227,1602.8,1602.7,10.7964098]
[1744870390302,8.46814919,1602.8,1602.7,7.5804098]
[1744870390697,8.46814919,1602.8,1602.7,6.33238246]
[1744870390698,13.93505919,1602.8,1602.7,6.33238246]
[1744870391203,13.93505919,1602.8,1602.7,5.856]
[1744870391403,1.24799,1602.7,1602.6,1.24806]
[1744870391612,8.91643919,1602.7,1602.6,0.47663115]
[1744870391791,1.24811,1602.6,1602.4,4.45599]
[1744870392111,6.58626227,1602.6,1602.5,0.47670958]
[1744870392298,2.5951,1602.6,1602.5,1.72484958]
[1744870392600,9.79401919,1602.6,1602.5,1.72484958]
[1744870393506,9.79401919,1602.6,1602.5,0.47670958]
[1744870394105,9.79401919,1602.6,1602.5,1.72484958]
[1744870394306,8.54594919,1602.6,1602.5,1.7249554]
[1744870394507,9.79401919,1602.6,1602.5,1.7249554]
[1744870394703,8.54594919,1602.6,1602.5,1.7249554]
[1744870396609,9.79401919,1602.6,1602.5,1.7249554]
[1744870398909,8.54594919,1602.6,1602.5,1.7249554]
[1744870399213,9.79401919,1602.6,1602.5,1.7249554]
[1744870399401,9.79401919,1602.6,1602.5,0.4768154]
[1744870399707,9.79401919,1602.6,1602.5,0.47681014]
[1744870400110,1.24822,1602.4,1602.3,5.856]
[1744870400314,4.45601692,1602.4,1602.3,0.47684797]
[1744870400505,7.19906919,1602.4,1602.3,0.47684797]
[1744870400706,7.19906919,1602.4,1602.2,0.00936154]
[1744870400707,1.2483,1602.3,1602.2,0.00936154]
[1744870401005,8.94554919,1602.3,1602.2,0.48640308]
[1744870401201,8.94554919,1602.3,1602.2,0.00936154]
[1744870401815,8.94554919,1602.3,1602.2,1.25774154]
[1744870402109,8.94554919,1602.3,1602.2,0.00936154]
[1744870406010,1.24846,1602.1,1602.0,3.2078]
[1744870406221,7.42779692,1602.1,1601.8,1.24867]
[1744870406415,3.20779692,1601.9,1601.8,1.24867]
[1744870406818,8.79427919,1601.9,1601.7,16.92334624]
[1744870407012,4.22,1602.1,1601.7,9.81863624]
[1744870407013,8.88093919,1601.8,1601.7,9.81863624]
[1744870407219,9.10919692,1601.8,1601.7,2.87427]
[1744870407416,11.85224919,1601.8,1601.7,2.87427]
[1744870407616,13.10093919,1601.8,1601.7,2.87427]
[1744870408320,13.10093919,1601.8,1601.7,1.6255]
[1744870408512,1.24877,1601.7,1601.6,10.32199154]
[1744870408712,8.88101919,1601.7,1601.6,3.21716154]
[1744870409014,8.88101919,1601.7,1601.6,0.00936154]
[1744870410222,9.67851919,1601.7,1601.6,0.00936154]
[1744870414524,13.89851919,1601.7,1601.6,0.00936154]
[1744870415017,9.67851919,1601.7,1601.6,0.00936154]
[1744870415224,13.89851919,1601.7,1601.6,0.00936154]
[1744870415423,9.67851919,1601.7,1601.6,0.00936154]
[1744870415719,13.89851919,1601.7,1601.6,0.00936154]
[1744870415913,9.67851919,1601.7,1601.6,0.00936154]
[1744870416420,13.89951919,1601.7,1601.6,1.61086154]
[1744870417320,11.42061919,1601.7,1601.6,2.85971154]
[1744870417713,12.21201919,1601.7,1601.6,1.61086154]
[1744870417914,13.84021919,1601.7,1601.6,1.61086154]
[1744870418322,13.84021919,1601.7,1601.6,3.22096154]
[1744870418520,13.84021919,1601.7,1601.6,4.46981154]
[1744870418820,2.74305227,1601.7,1601.6,4.46981154]
[1744870419022,6.96405227,1601.7,1601.6,4.46981154]
[1744870420522,2.74305227,1601.7,1601.6,4.46981154]
[1744870420823,3.21716154,1601.9,1601.8,1.24869]
[1744870421022,10.64595846,1601.9,1601.8,1.24869]
[1744870421321,6.97341381,1601.9,1601.8,1.24869]
[1744870421722,8.22202381,1601.9,1601.8,2.86079]
[1744870421917,6.97341381,1601.9,1601.8,2.86079]
[1744870423923,8.22202381,1601.9,1601.8,1.6121]
[1744870424116,9.92232381,1601.9,1601.8,1.6121]
[1744870425529,1.24869,1601.8,1601.7,3.2078]
[1744870425824,8.81183919,1601.8,1601.7,4.8299]
[1744870426125,8.81183919,1601.8,1601.7,3.2078]
[1744870426624,8.81183919,1601.8,1601.7,4.45657]
[1744870426817,8.81183919,1601.8,1601.7,1.24877]
[1744870427019,8.81183919,1601.8,1601.7,2.87087]
[1744870427423,8.81183919,1601.8,1601.6,1.25817154]
[1744870427621,10.48111919,1601.7,1601.6,0.00936154]
[1744870427929,7.73806692,1601.7,1601.6,0.00936154]
[1744870428124,10.48111919,1601.7,1601.6,0.00936154]
[1744870428619,13.68891919,1601.7,1601.6,0.00936154]
[1744870428825,10.48111919,1601.7,1601.6,0.00936154]
[1744870432415,15.48111919,1601.7,1601.6,0.00936154]
[1744870433430,10.48111919,1601.7,1601.6,0.00936154]
[1744870433817,15.48111919,1601.7,1601.6,0.00936154]
[1744870436530,10.48111919,1601.7,1601.6,0.00936154]
[1744870438134,8.21382227,1601.7,1601.6,0.00936154]
[1744870438323,8.21382227,1601.7,1601.6,2.52276154]
[1744870438831,13.16371919,1601.7,1601.6,2.52276154]
[1744870439029,13.16371919,1601.7,1601.6,0.00936154]
[1744870442635,18.16371919,1601.7,1601.6,1.54e-06]
[1744870443338,1.24916,1601.2,1601.1,4.055]
[1744870443538,5.47016,1601.2,1601.1,6.15325778]
[1744870443744,8.21321227,1601.2,1601.1,5.67550477]
[1744870443937,6.96405227,1601.2,1601.1,6.15327697]
[1744870444237,6.96405227,1601.2,1601.1,7.40251697]
[1744870444536,6.96405227,1601.2,1601.1,7.40240615]
[1744870445123,2.06086,1601.4,1601.1,6.15316615]
[1744870445327,8.21311227,1601.4,1601.2,3.35647138]
[1744870445525,8.21311227,1601.4,1601.3,1.6297]
[1744870445735,6.96405227,1601.4,1601.3,3.35631957]
[1744870445936,8.21305227,1601.4,1601.3,3.35631957]
[1744870446334,8.21305227,1601.4,1601.3,2.10723957]
[1744870446941,8.21305227,1601.4,1601.3,2.10722218]
[1744870447237,8.21305227,1601.4,1601.3,1.6297]
[1744870447435,2.74305227,1601.4,1601.3,2.87878]
[1744870447634,4.221,1601.6,1601.5,1.24886]
[1744870447841,6.95485704,1601.6,1601.5,1.24886]
[1744870448137,8.20370704,1601.6,1601.5,1.72619695]
[1744870448433,8.20370704,1601.6,1601.5,1.662]
[1744870448626,9.79560704,1601.6,1601.5,1.662]
[1744870449047,8.20370704,1601.6,1601.5,2.91092]
[1744870450141,6.95485704,1601.6,1601.5,2.91092]
[1744870450332,8.20370704,1601.6,1601.5,1.662]
[1744870453145,8.20370704,1601.6,1601.5,2.13970233]
[1744870453339,8.20370704,1601.6,1601.5,2.13969907]
[1744870453640,8.20370704,1601.6,1601.5,2.13972506]
[1744870454033,8.20370704,1601.6,1601.5,3.38864506]
[1744870454433,8.20370704,1601.6,1601.5,2.13972506]
[1744870454633,8.20370704,1601.6,1601.5,0.47772506]
[1744870454834,1.24892,1601.5,1601.4,4.8361]
[1744870455038,2.74305227,1601.5,1601.4,6.55379887]
[1744870455243,6.29996,1601.8,1601.4,10.30479887]
[1744870455543,2.74305227,1601.7,1601.6,1.24878]
[1744870455744,5.94165396,1601.7,1601.6,1.7266741]
[1744870455936,2.74305227,1601.7,1601.6,4.9344741]
[1744870456142,4.23036154,1601.9,1601.8,1.24869]
[1744870456444,4.23036154,1601.9,1601.8,1.7265841]
[1744870456445,6.97341381,1601.9,1601.8,1.7265841]
[1744870457138,8.22202381,1601.9,1601.8,0.47770273]
[1744870457344,8.22202381,1601.9,1601.7,1.24871]
[1744870457745,7.19034396,1601.8,1601.7,1.24871]
[1744870458043,7.19034396,1601.8,1601.7,1.72635991]
[1744870458242,3.99174227,1601.8,1601.7,1.34054991]
[1744870458443,3.99174227,1601.8,1601.7,2.58931991]
[1744870458750,3.99174227,1601.8,1601.7,1.34054991]
[1744870458946,3.99174227,1601.8,1601.7,2.58931991]
[1744870459450,3.99174227,1601.8,1601.7,1.34054991]
[1744870459947,3.99174227,1601.8,1601.7,2.58931991]
[1744870460247,3.99174227,1601.8,1601.7,1.34054991]
[1744870461341,2.74305227,1601.8,1601.7,2.58931991]
[1744870462648,2.74305227,1601.8,1601.7,2.58881289]
[1744870464748,3.99174227,1601.8,1601.7,1.34004289]
[1744870464949,3.99174227,1601.8,1601.7,0.8629]
[1744870465143,8.92014396,1601.8,1601.7,0.8629]
[1744870465449,9.74744396,1601.8,1601.7,0.8629]
[1744870465851,9.74744396,1601.8,1601.7,2.11167]
[1744870466148,9.74744396,1601.8,1601.7,2.58881535]
[1744870466451,9.74744396,1601.8,1601.7,0.8629]
[1744870468743,5.94165396,1601.8,1601.7,2.58884293]
[1744870469151,7.19034396,1601.8,1601.7,2.58884293]
[1744870470450,2.74305227,1601.8,1601.7,3.37934293]
[1744870471151,2.74305227,1601.8,1601.7,5.06614293]
[1744870471754,2.74305227,1601.8,1601.7,5.0661217]
[1744870472353,0.00936154,1601.9,1601.8,1.24869]
[1744870472554,0.00936154,1601.9,1601.8,6.6204417]
[1744870473557,0.00936154,1601.9,1601.8,6.62063358]
[1744870474266,1.25797154,1601.9,1601.8,6.62063358]
[1744870474467,1.64516154,1601.9,1601.8,6.62063358]
[1744870474655,2.89377154,1601.9,1601.8,5.37194358]
[1744870474858,9.6844255,1601.9,1601.8,3.68514358]
[1744870475066,9.6844255,1601.9,1601.8,3.2078]
[1744870475559,9.6844255,1601.9,1601.8,3.68549733]
[1744870476269,9.6844255,1601.9,1601.8,3.2078]
[1744870476567,9.6844255,1601.9,1601.8,3.68556937]
[1744870477163,9.6844255,1601.9,1601.8,3.68557144]
[1744870477674,1.24877,1601.7,1601.6,6.08389]
[1744870477867,8.82239396,1601.8,1601.6,6.56190894]
[1744870478063,6.07937169,1601.7,1601.6,3.2078]
[1744870478371,9.65852396,1601.7,1601.6,4.9347045]
[1744870478768,9.65852396,1601.7,1601.6,3.6858545]
[1744870480272,8.40975396,1601.7,1601.6,4.9347045]
[1744870480473,2.74305227,1601.7,1601.6,6.6390045]
[1744870481373,2.74305227,1601.7,1601.6,7.44432657]
[1744870481667,4.219,1601.8,1601.7,1.24877]
[1744870481873,5.07736154,1601.9,1601.7,0.4780545]
[1744870482074,8.85707396,1601.8,1601.6,6.16089]
[1744870482269,4.86530169,1601.7,1601.6,6.16095]
[1744870482567,7.60835396,1601.7,1601.6,6.16095]
[1744870482773,4.40975227,1601.7,1601.6,6.16095]
[1744870482970,4.40975227,1601.7,1601.6,6.63928214]
[1744870483268,4.40975227,1601.7,1601.6,6.16095]
[1744870483570,4.40975227,1601.7,1601.6,6.96651695]
[1744870483873,6.32603154,1601.9,1601.7,1.2487]
[1744870484073,7.91833154,1601.9,1601.8,1.5823]
[1744870484466,7.91833154,1601.9,1601.8,2.06088226]
[1744870484669,13.8599855,1601.9,1601.8,2.06088226]
[1744870484873,13.8599855,1601.9,1601.8,2.06090843]
[1744870485872,13.8599855,1601.9,1601.8,0.47860843]
[1744870486774,17.6113155,1601.9,1601.8,0.47875285]
[1744870486971,18.8599255,1601.9,1601.8,0.47875285]
[1744870487567,13.8599255,1601.9,1601.8,0.47875285]
[1744870487968,1.24877,1601.7,1601.6,4.45664]
[1744870488273,4.44737169,1601.7,1601.6,4.93538621]
[1744870488475,7.19042396,1601.7,1601.6,4.93538621]